{"text_format":"1","workbook":"xlsx","n_sheets":4,"sheets":["Background Color","Another Cell's Color","Font Color","Border Color"],"not_rendered":{"charts":0,"images":0,"macros":1,"external_links":0,"defined_names":0,"comments":0,"pivot_tables":0},"unopened":[],"bounds":{"document_bytes":16777216,"sheet_cells":100000,"rows_first":2000,"rows_last":500,"rows_between":2000,"halvings":0,"cell_chars":16384,"cell_head_chars":4096},"cells_cut":0,"cells_raw":0,"read":"whole","date_system":"1900"}

{"sheet":"Background Color","index":0,"n_rows":13,"n_cols":4,"rows_kept":13,"cut":false,"hidden":false,"merged":[[0,0,0,4]]}
["Employee Record of Jupyter Group"]
[]
[null,"Employee Name","Starting Salary","Present Salary"]
[null,"Frank Orwell",31000,{"$f":"C4+(C4*20)/100","v":37200}]
[null,"Alfred Moyes",34000,{"$f":"C5+(C5*20)/100","v":40800}]
[null,"Jennifer Austin",39000,46800]
[null,"Natasha Marlo",31000,37200]
[null,"Marcus North",30000,36000]
[null,"Kane Taylor",33000,39600]
[null,"Roger Hopkins",27000,32400]
[null,"Shane Lee",28000,33600]
[null,"Steve Smith",31000,37200]
[null,"Benjamin Stokes",33000,39600]

{"sheet":"Another Cell's Color","index":1,"n_rows":13,"n_cols":4,"rows_kept":13,"cut":false,"hidden":false,"merged":[[0,0,0,4]]}
["Employee Record of Jupyter Group"]
[]
[null,"Employee Name","Starting Salary","Present Salary"]
[null,"Frank Orwell",31000,{"$f":"C4+(C4*20)/100","v":37200}]
[null,"Alfred Moyes",34000,{"$f":"C5+(C5*20)/100","v":40800}]
[null,"Jennifer Austin",39000,46800]
[null,"Natasha Marlo",31000,37200]
[null,"Marcus North",30000,36000]
[null,"Kane Taylor",33000,39600]
[null,"Roger Hopkins",27000,32400]
[null,"Shane Lee",28000,33600]
[null,"Steve Smith",31000,37200]
[null,"Benjamin Stokes",33000,39600]

{"sheet":"Font Color","index":2,"n_rows":13,"n_cols":4,"rows_kept":13,"cut":false,"hidden":false,"merged":[[0,0,0,4]]}
["Employee Record of Jupyter Group"]
[]
[null,"Employee Name","Starting Salary","Present Salary"]
[null,"Frank Orwell",31000,{"$f":"C4+(C4*20)/100","v":37200}]
[null,"Alfred Moyes",34000,{"$f":"C5+(C5*20)/100","v":40800}]
[null,"Jennifer Austin",39000,46800]
[null,"Natasha Marlo",31000,37200]
[null,"Marcus North",30000,36000]
[null,"Kane Taylor",33000,39600]
[null,"Roger Hopkins",27000,32400]
[null,"Shane Lee",28000,33600]
[null,"Steve Smith",31000,37200]
[null,"Benjamin Stokes",33000,39600]

{"sheet":"Border Color","index":3,"n_rows":13,"n_cols":4,"rows_kept":13,"cut":false,"hidden":false,"merged":[[0,0,0,4]]}
["Employee Record of Jupyter Group"]
[]
[null,"Employee Name","Starting Salary","Present Salary"]
[null,"Frank Orwell",31000,{"$f":"C4+(C4*20)/100","v":37200}]
[null,"Alfred Moyes",34000,{"$f":"C5+(C5*20)/100","v":40800}]
[null,"Jennifer Austin",39000,46800]
[null,"Natasha Marlo",31000,37200]
[null,"Marcus North",30000,36000]
[null,"Kane Taylor",33000,39600]
[null,"Roger Hopkins",27000,32400]
[null,"Shane Lee",28000,33600]
[null,"Steve Smith",31000,37200]
[null,"Benjamin Stokes",33000,39600]